Department family,Entity,Date,Expense type,Expense area,Supplier,Transaction number,Amount,Description,Supplier Postcode,Expenditure Type,Supplier Type
HM Procurator General and Treasury Solicitor,Government Legal Department,02/09/2022,Recruitment: Lawyers,Corporate Resources Group,Peoplescout (Tmp UK Ltd),241904,23435.00,Payment for lawyer recruitment services,W1T 7RQ,Administration,
HM Procurator General and Treasury Solicitor,Government Legal Department,06/09/2022,Maintenance: Software,Corporate Resources Group,Tikit Limited T/A Advanced,241972,27003.50,Payment for IT software maintenance,B1 1RF,Administration,
HM Procurator General and Treasury Solicitor,Government Legal Department,06/09/2022,Maintenance: Software,Corporate Resources Group,Insight Direct (UK) Limited,241985,20930.00,Payment for IT software maintenance,S9 2BU,Administration,
HM Procurator General and Treasury Solicitor,Government Legal Department,06/09/2022,Maintenance: Software,Corporate Resources Group,Netright UK Holdings Ltd (Imanage Llc),241992,65119.70,Payment for IT software maintenance,EC2R 5BJ,Administration,
HM Procurator General and Treasury Solicitor,Government Legal Department,06/09/2022,Special Advocate's Fees,Legal case disbursements,Counsel,1010609,34815.00,Payment of Counsel fees for legal cases,,Administration,
HM Procurator General and Treasury Solicitor,Government Legal Department,08/09/2022,Foreign Solicitor's Agents,Legal case disbursements,Yc Lee & Lee Advocates & Solicitors,1011019,30634.84,Payment for professional services for legal case,Non-UK Supplier,Administration,
HM Procurator General and Treasury Solicitor,Government Legal Department,09/09/2022,Advisory External Legal Spend,Legal Advisory Group,Dentons UK And Middle East Llp(Denton Wilde ),242042,37041.20,Payment for professional services,EC4M 7WS,Administration,
HM Procurator General and Treasury Solicitor,Government Legal Department,09/09/2022,Agency Staff: Admin,Litigation Division,Alexander Mann Solutions Limited,242052,57283.03,Payment for agency staff,EC2N 3AQ,Administration,
HM Procurator General and Treasury Solicitor,Government Legal Department,09/09/2022,Agency Staff: Legal,Litigation Division,Alexander Mann Solutions Limited,242055,31480.14,Payment for interim legal professionals,EC2N 3AQ,Administration,
HM Procurator General and Treasury Solicitor,Government Legal Department,09/09/2022,Agency Staff: Admin,Litigation Division,Alexander Mann Solutions Limited,242057,50132.56,Payment for agency staff,EC2N 3AQ,Administration,
HM Procurator General and Treasury Solicitor,Government Legal Department,09/09/2022,Network Services,Corporate Resources Group,Colt Technology Services,242082,23587.56,Payment for IT network services ,EC3A 7QN,Administration,
HM Procurator General and Treasury Solicitor,Government Legal Department,09/09/2022,Maintenance: Software,Corporate Resources Group,Telefonica UK Ltd,242085,34600.00,Payment for IT software maintenance,SL1 4DX,Administration,
HM Procurator General and Treasury Solicitor,Government Legal Department,09/09/2022,Travel and Accommodation Contract,Corporate Resources Group,Corporate Travel Management (North) Limited,242121,25880.89,Payment for travel and accommodation services,BD1 5HQ,Administration,
HM Procurator General and Treasury Solicitor,Government Legal Department,13/09/2022,Agency Staff: Legal,Litigation Division,Alexander Mann Solutions Limited,242195,48598.77,Payment for interim legal professionals,EC2N 3AQ,Administration,
HM Procurator General and Treasury Solicitor,Government Legal Department,13/09/2022,Agency Staff: Legal,Litigation Division,Alexander Mann Solutions Limited,242216,40070.41,Payment for interim legal professionals,EC2N 3AQ,Administration,
HM Procurator General and Treasury Solicitor,Government Legal Department,13/09/2022,Agency Staff: Legal,Litigation Division,Alexander Mann Solutions Limited,242220,43612.03,Payment for interim legal professionals,EC2N 3AQ,Administration,
HM Procurator General and Treasury Solicitor,Government Legal Department,16/09/2022,Recruitment: Lawyers,Corporate Resources Group,Peoplescout (Tmp UK Ltd),242286,42183.00,Payment for lawyer recruitment services,W1T 7RQ,Administration,
HM Procurator General and Treasury Solicitor,Government Legal Department,16/09/2022,Recruitment: Lawyers,Corporate Resources Group,Peoplescout (Tmp UK Ltd),242287,25778.50,Payment for lawyer recruitment services,W1T 7RQ,Administration,
HM Procurator General and Treasury Solicitor,Government Legal Department,16/09/2022,Maintenance: Software,Corporate Resources Group,Advanced Legal Solutions Ltd,242289,51503.69,Payment for IT software maintenance,SL3 9LL,Administration,
HM Procurator General and Treasury Solicitor,Government Legal Department,16/09/2022,Postal Serv: Dx Service,Corporate Resources Group,Dx Network Services Ltd,242297,32545.51,Payment for courier services ,SL3 9GL,Administration,
HM Procurator General and Treasury Solicitor,Government Legal Department,16/09/2022,Counsel Fees,Legal case disbursements,Counsel,1011730,26760.00,Payment of Counsel fees for legal cases,,Administration,
HM Procurator General and Treasury Solicitor,Government Legal Department,23/09/2022,Network Services,Corporate Resources Group,Colt Technology Services,242538,23587.56,Payment for IT network services ,EC3A 7QN,Administration,
HM Procurator General and Treasury Solicitor,Government Legal Department,23/09/2022,Agency Staff: Legal,Litigation Division,Alexander Mann Solutions Limited,242553,32962.22,Payment for interim legal professionals,EC2N 3AQ,Administration,
HM Procurator General and Treasury Solicitor,Government Legal Department,23/09/2022,Accommodation: Rent,Corporate Resources Group,Government Property Agency,242556,31798.01,Payment for rent and/or service charge,B2 2QQ,Administration,Public Sector
HM Procurator General and Treasury Solicitor,Government Legal Department,23/09/2022,Agency Staff: Legal,Litigation Division,Alexander Mann Solutions Limited,242569,50881.19,Payment for interim legal professionals,EC2N 3AQ,Administration,
HM Procurator General and Treasury Solicitor,Government Legal Department,23/09/2022,Agency Staff: Legal,Litigation Division,Alexander Mann Solutions Limited,242571,22939.52,Payment for interim legal professionals,EC2N 3AQ,Administration,
HM Procurator General and Treasury Solicitor,Government Legal Department,23/09/2022,Maintenance: Software,Corporate Resources Group,Advanced Legal Solutions Ltd,242573,27003.50,Payment for IT software maintenance,SL3 9LL,Administration,
HM Procurator General and Treasury Solicitor,Government Legal Department,23/09/2022,Expert Report,Legal case disbursements,Frontier Economics Ltd,1012618,24570.00,Payment for professional services for legal case,WC1V 6DA,Administration,
HM Procurator General and Treasury Solicitor,Government Legal Department,28/09/2022,Maintenance: Software,Corporate Resources Group,Thomson Reuters,242629,269916.81,Payment for IT software maintenance,E14 5AQ,Administration,
HM Procurator General and Treasury Solicitor,Government Legal Department,28/09/2022,Consultants: General,Corporate Resources Group,Tpximpact Ltd,242647,140850.00,Payment for professional services,SE1 9RG,Administration,
HM Procurator General and Treasury Solicitor,Government Legal Department,28/09/2022,Ext Serv: Hr Casework,Corporate Resources Group,Ministry of Justice,242653,46191.00,Payment for shared services,SW1H 9AJ,Administration,Public Sector
HM Procurator General and Treasury Solicitor,Government Legal Department,28/09/2022,Recruitment: Lawyers,Corporate Resources Group,Peoplescout (Tmp UK Ltd),242699,44526.50,Payment for lawyer recruitment services,W1T 7RQ,Administration,
HM Procurator General and Treasury Solicitor,Government Legal Department,28/09/2022,Recruitment: Lawyers,Corporate Resources Group,Peoplescout (Tmp UK Ltd),242701,35152.50,Payment for lawyer recruitment services,W1T 7RQ,Administration,
HM Procurator General and Treasury Solicitor,Government Legal Department,28/09/2022,E-Disclosure Fees,Legal case disbursements,Anexsys Ltd,1012905,35324.10,Payment for e-disclosure services for legal case,EC1R 3BP,Administration,
HM Procurator General and Treasury Solicitor,Government Legal Department,28/09/2022,Counsel Fees,Legal case disbursements,Counsel,1013071,22564.00,Payment of Counsel fees for legal cases,,Administration,
HM Procurator General and Treasury Solicitor,Government Legal Department,28/09/2022,E-Disclosure Fees,Legal case disbursements,Anexsys Ltd,1013076,25119.75,Payment for e-disclosure services for legal case,EC1R 3BP,Administration,
HM Procurator General and Treasury Solicitor,Government Legal Department,28/09/2022,Solicitor's Agents Fees,Legal case disbursements,Womble Bond Dickinson Llp,1013079,45000.00,Payment for professional services for legal case,BS1 6DZ,Administration,
HM Procurator General and Treasury Solicitor,Government Legal Department,28/09/2022,Solicitor's Agents Fees,Legal case disbursements,Womble Bond Dickinson Llp,1013080,45000.00,Payment for professional services for legal case,BS1 6DZ,Administration,
HM Procurator General and Treasury Solicitor,Government Legal Department,28/09/2022,Expert Report,Legal case disbursements,Frontier Economics Ltd,1013111,36343.00,Payment for professional services for legal case,WC1V 6DA,Administration,
HM Procurator General and Treasury Solicitor,Government Legal Department,28/09/2022,Solicitor's Agents Fees,Legal case disbursements,Womble Bond Dickinson Llp,1013118,35687.50,Payment for professional services for legal case,BS1 6DZ,Administration,
HM Procurator General and Treasury Solicitor,Government Legal Department,28/09/2022,Solicitor's Agents Fees,Legal case disbursements,Womble Bond Dickinson Llp,1013119,35687.50,Payment for professional services for legal case,BS1 6DZ,Administration,
HM Procurator General and Treasury Solicitor,Government Legal Department,30/09/2022,Maintenance: Software,Corporate Resources Group,Advanced Business Solutions,242777,27003.50,Payment for IT software maintenance,KT11 1TF,Administration,
HM Procurator General and Treasury Solicitor,Government Legal Department,30/09/2022,Agency Staff: Legal,Litigation Division,Alexander Mann Solutions Limited,242782,31874.43,Payment for interim legal professionals,EC2N 3AQ,Administration,
HM Procurator General and Treasury Solicitor,Government Legal Department,30/09/2022,Agency Staff: Legal,Litigation Division,Alexander Mann Solutions Limited,242784,48492.61,Payment for interim legal professionals,EC2N 3AQ,Administration,
HM Procurator General and Treasury Solicitor,Government Legal Department,30/09/2022,Agency Staff: Legal,Litigation Division,Alexander Mann Solutions Limited,242786,50733.19,Payment for interim legal professionals,EC2N 3AQ,Administration,
HM Procurator General and Treasury Solicitor,Government Legal Department,30/09/2022,E-Disclosure Fees,Legal case disbursements,Anexsys Ltd,1013529,23104.45,Payment for e-disclosure services for legal case,EC1R 3BP,Administration,
Nil return for Attorney General's Office ,,,,,,,,,,,
NIL return for HM Crown Prosecution Inspectorate,,,,,,,,,,,
